bitfinex/quotes_BTCUSD_20251208
["timestamp","ask_amount","ask_price","bid_price","bid_amount"]
[1765225450249,0.23171695,90628.0,90625.0,0.01103448]
[1765225450426,0.323,90632.0,90631.0,0.22067504]
[1765225451012,0.23169946,90635.0,90631.0,0.04369375]
[1765225451252,0.22066082,90637.0,90634.0,0.26436111]
[1765225451437,0.0110329,90638.0,90635.0,0.01103326]
[1765225451628,0.2316915,90638.0,90635.0,0.23169841]
[1765225451830,0.0110329,90638.0,90635.0,0.23169841]
[1765225452036,0.22067121,90633.0,90604.0,0.03924917]
[1765225452243,0.01103423,90627.0,90622.0,0.01103484]
[1765225452466,0.01103423,90627.0,90623.0,0.01103472]
[1765225452677,0.22068725,90626.0,90623.0,0.01103472]
[1765225452866,0.01103411,90628.0,90625.0,0.22068934]
[1765225453045,0.01103387,90630.0,90626.0,0.01103436]
[1765225453267,0.23171136,90630.0,90627.0,0.2206847]
[1765225453472,0.23370414,90633.0,90630.0,0.01103387]
[1765225453676,0.01103363,90632.0,90629.0,0.01103399]
[1765225453877,0.23170849,90632.0,90629.0,0.01103399]
[1765225454194,0.23171514,90629.0,90625.0,0.01103448]
[1765225454510,0.23171666,90628.0,90624.0,0.0110346]
[1765225454825,0.22068551,90627.0,90624.0,0.23172589]
[1765225455299,0.00112755,90626.0,90624.0,0.23172589]
[1765225455503,0.22068551,90627.0,90624.0,0.23172589]
[1765225455683,0.03334789,90625.0,90621.0,0.01103496]
[1765225455891,0.03334789,90625.0,90618.0,5.129e-05]
[1765225455892,0.01103496,90621.0,90618.0,5.129e-05]
[1765225456233,0.25295426,90619.0,90618.0,5.129e-05]
[1765225456382,0.27515426,90619.0,90618.0,5.129e-05]
[1765225456588,0.03225,90619.0,90618.0,0.22075799]
[1765225457401,0.05077232,90623.0,90622.0,0.22069696]
[1765225457798,0.05077232,90623.0,90620.0,0.23173685]
[1765225458003,0.05077232,90623.0,90622.0,0.22069696]
[1765225458382,0.03871232,90623.0,90622.0,0.22069696]
[1765225459390,0.03971232,90623.0,90622.0,0.22069696]
[1765225460551,0.04171232,90623.0,90622.0,0.25303696]
[1765225460969,0.003,90623.0,90622.0,0.25464983]
[1765225461167,0.003,90623.0,90622.0,0.31932983]
[1765225461595,0.00303856,90623.0,90622.0,0.31932983]
[1765225462092,0.00403856,90623.0,90622.0,0.31932983]
[1765225462265,0.00403856,90623.0,90622.0,0.27212983]
[1765225462642,0.00203856,90623.0,90622.0,0.27212983]
[1765225462842,0.00403856,90623.0,90622.0,0.27212983]
[1765225463064,0.00403856,90623.0,90622.0,0.31932983]
[1765225468896,0.08606856,90623.0,90622.0,0.00161287]
[1765225469119,0.10826856,90623.0,90622.0,0.22230983]
[1765225469547,0.00403856,90623.0,90622.0,0.22230983]
[1765225469753,0.00403856,90623.0,90622.0,0.30184983]
[1765225470359,0.00403856,90623.0,90622.0,0.22230983]
[1765225471117,0.05992856,90623.0,90622.0,0.22230983]
[1765225471321,0.10970856,90623.0,90622.0,0.22069696]
[1765225471895,0.05992856,90623.0,90622.0,0.22069696]
[1765225472092,0.02767856,90623.0,90622.0,0.22069696]
[1765225472771,0.05992856,90623.0,90622.0,0.22069696]
[1765225473188,0.00403856,90623.0,90622.0,0.30184983]
[1765225473850,0.00403856,90623.0,90622.0,0.22230983]
[1765225474954,0.00403856,90623.0,90622.0,0.30184983]
[1765225476488,0.00403856,90623.0,90622.0,0.38292359]
[1765225476692,0.00403856,90623.0,90622.0,0.38767282]
[1765225477270,0.00203856,90623.0,90622.0,0.38767282]
[1765225477474,0.00103856,90623.0,90622.0,0.38967282]
[1765225477905,0.00103856,90623.0,90622.0,0.39167282]
[1765225478927,0.00103856,90623.0,90622.0,0.38967282]
[1765225479290,0.00103856,90623.0,90622.0,0.37022282]
[1765225479405,0.00103856,90623.0,90622.0,0.36822282]
[1765225479818,0.00103856,90623.0,90622.0,0.37022282]
[1765225480024,0.00103856,90623.0,90622.0,0.69322282]
[1765225480667,9e-05,90658.0,90649.0,0.22063122]
[1765225480842,9e-05,90658.0,90649.0,0.27105122]
[1765225481044,9e-05,90658.0,90649.0,0.22063122]
[1765225481803,0.00078851,90650.0,90649.0,0.22063122]
[1765225482006,0.00578851,90650.0,90649.0,0.22063122]
[1765225482766,0.00778851,90650.0,90649.0,0.22063122]
[1765225486134,0.00778851,90650.0,90649.0,0.25250122]
[1765225486279,0.0085893,90650.0,90649.0,0.25250122]
[1765225488105,0.0085893,90650.0,90649.0,0.32090409]
[1765225488340,0.0085893,90650.0,90649.0,0.29870409]
[1765225488747,0.0085893,90650.0,90649.0,0.22224409]
[1765225488926,0.0065893,90650.0,90649.0,0.22224409]
[1765225489710,0.0015893,90650.0,90649.0,0.25411409]
[1765225490048,0.0025893,90650.0,90649.0,0.25411409]
[1765225490223,0.0025893,90650.0,90649.0,0.29870409]
[1765225490427,0.0025893,90650.0,90649.0,0.32090409]
[1765225491346,0.0015893,90650.0,90649.0,0.32090409]
[1765225491551,0.0015893,90650.0,90649.0,0.32190409]
[1765225492345,0.0015893,90650.0,90649.0,0.32290409]
[1765225492670,0.0015893,90650.0,90649.0,0.38542708]
[1765225492897,9e-05,90658.0,90657.0,0.56581175]
[1765225493115,9e-05,90658.0,90657.0,0.61682591]
[1765225493321,0.00032721,90658.0,90657.0,0.66141591]
[1765225493721,0.00032721,90658.0,90657.0,0.72014665]
[1765225494298,0.0002334,90663.0,90657.0,0.72014665]
[1765225494299,0.0004,90680.0,90669.0,0.24278255]
[1765225494497,0.0004,90680.0,90669.0,0.29374542]
[1765225494697,0.0004,90680.0,90669.0,0.31613542]
[1765225496032,0.01102791,90679.0,90669.0,0.31613542]
[1765225496228,0.0004,90680.0,90669.0,0.31613542]
[1765225496772,0.0014,90670.0,90669.0,0.31613542]
[1765225497391,0.0014,90670.0,90669.0,0.27154542]
[1765225498440,0.0014,90670.0,90669.0,0.31613542]
[1765225498645,0.0014,90670.0,90669.0,0.05096287]
[1765225498870,0.0014,90670.0,90669.0,0.01909287]
[1765225499065,0.0014,90670.0,90668.0,0.01808]
[1765225499333,0.0014,90670.0,90669.0,0.22058255]
[1765225499542,0.0014,90670.0,90667.0,0.23161626]
[1765225499742,0.0014,90670.0,90667.0,0.01102937]
[1765225499960,0.0004,90670.0,90667.0,0.01102937]
[1765225500140,0.0014,90670.0,90667.0,0.01102937]
[1765225500345,0.01103022,90660.0,90657.0,5.129e-05]
[1765225500552,0.26040932,90658.0,90657.0,5.129e-05]
[1765225500959,0.30346932,90658.0,90657.0,5.129e-05]
[1765225501162,0.01209,90658.0,90657.0,5.129e-05]
[1765225501408,0.002,90660.0,90659.0,0.01103034]
[1765225501607,0.002,90660.0,90659.0,0.23324878]
[1765225501919,0.002,90660.0,90659.0,0.32527878]
[1765225502096,0.0004,90670.0,90669.0,0.22058255]
[1765225502294,0.0004,90670.0,90669.0,0.25238542]
[1765225502532,0.0004,90670.0,90669.0,0.31894542]
[1765225503178,0.0004,90670.0,90669.0,0.29674542]
[1765225503384,0.0004,90670.0,90669.0,0.38146841]
[1765225504007,0.0014,90670.0,90669.0,0.42018073]
[1765225504209,0.0004,90680.0,90679.0,0.24275823]
[1765225504435,0.0004,90680.0,90679.0,0.2920811]
[1765225504605,0.0004,90680.0,90679.0,0.3364411]
[1765225505987,0.0004,90680.0,90679.0,0.39996409]
[1765225506202,0.0004,90680.0,90679.0,0.43967641]
[1765225506533,0.0004,90680.0,90679.0,0.40096409]
[1765225506733,0.0004,90680.0,90679.0,0.43967641]
[1765225507158,0.0004,90680.0,90679.0,0.37615342]
[1765225507575,0.0004,90680.0,90679.0,0.3259211]
[1765225507800,0.0004,90680.0,90679.0,0.05628287]
[1765225508005,0.0004,90680.0,90679.0,0.04180287]
[1765225508209,0.0004,90680.0,90679.0,0.10821869]
[1765225508529,0.0004,90680.0,90679.0,0.16774168]
[1765225508758,0.0004,90680.0,90679.0,0.222654]
[1765225509173,0.0004,90680.0,90679.0,0.225654]
[1765225509380,0.0004,90680.0,90679.0,0.221654]
[1765225509503,0.0004,90680.0,90679.0,0.223654]
[1765225509704,0.0004,90680.0,90679.0,0.227654]
[1765225509919,0.0004,90680.0,90679.0,0.00361287]
[1765225510151,0.0004,90680.0,90679.0,0.009]
[1765225510574,0.22056553,90676.0,90675.0,0.01808]
[1765225510803,0.22056553,90676.0,90668.0,0.05538924]
[1765225510804,0.01102839,90675.0,90671.0,0.01102888]
[1765225511007,0.01102803,90678.0,90674.0,0.01102851]
[1765225511215,0.0004,90680.0,90676.0,0.23159263]
[1765225511423,0.0004,90680.0,90677.0,0.23159092]
[1765225511633,0.22095649,90680.0,90677.0,0.23159092]
[1765225511848,0.22095649,90680.0,90679.0,0.004]
[1765225512083,0.00105215,90680.0,90677.0,0.01102815]
[1765225512251,0.0004,90680.0,90677.0,0.01102815]
[1765225512453,0.0024,90680.0,90678.0,0.22055999]
[1765225512920,0.00062252,90679.0,90678.0,0.22055999]
[1765225513579,0.00062252,90679.0,90677.0,0.23158851]
[1765225513802,0.01342779,90680.0,90676.0,0.23158863]
[1765225514016,0.0024,90680.0,90678.0,0.22056035]
[1765225514230,0.0024,90680.0,90677.0,0.01102815]
[1765225514231,0.01242779,90680.0,90677.0,0.01102815]
[1765225514450,0.00062252,90679.0,90677.0,0.01102815]
[1765225514655,0.0024,90680.0,90677.0,0.23159073]
[1765225514854,0.0024,90680.0,90676.0,0.01102827]
[1765225514855,0.01242779,90680.0,90676.0,0.01102827]
[1765225515013,0.01102791,90679.0,90675.0,0.23159133]
[1765225515214,0.001,90679.0,90676.0,0.23159258]
[1765225515412,0.0014,90680.0,90677.0,0.01102815]
[1765225515637,0.22195674,90680.0,90677.0,0.23159078]
[1765225515842,0.0024,90680.0,90678.0,0.22055896]
[1765225516047,0.0004,90680.0,90678.0,0.22055896]
[1765225516416,0.221559,90679.0,90677.0,0.01102815]
[1765225516628,0.221559,90679.0,90673.0,0.01102864]
[1765225516629,0.01102815,90677.0,90673.0,0.01102864]
[1765225516818,0.02934,90678.0,90675.0,0.01102839]
[1765225516955,0.22056337,90677.0,90675.0,0.01102839]
[1765225517150,0.23159152,90677.0,90674.0,0.01102851]
[1765225517351,0.01102815,90677.0,90674.0,0.23159841]
[1765225517576,0.23159345,90677.0,90674.0,0.01102851]
[1765225518067,0.23159345,90677.0,90669.0,0.22058083]
[1765225518068,0.22060932,90658.0,90657.0,5.129e-05]
[1765225518192,0.27117932,90658.0,90657.0,5.129e-05]
[1765225518409,0.31454932,90658.0,90657.0,5.129e-05]
[1765225518606,0.65974932,90658.0,90657.0,5.129e-05]
[1765225519136,0.74167031,90658.0,90657.0,5.129e-05]
[1765225519309,0.74567031,90658.0,90657.0,5.129e-05]
[1765225519509,0.69846164,90658.0,90657.0,5.129e-05]
[1765225519708,0.77728341,90658.0,90657.0,5.129e-05]
[1765225520449,0.78028341,90658.0,90657.0,5.129e-05]
[1765225521022,0.77428341,90658.0,90657.0,5.129e-05]
[1765225521240,0.77828341,90658.0,90657.0,5.129e-05]
[1765225521407,0.88676269,90658.0,90657.0,5.129e-05]
[1765225521615,0.88376269,90658.0,90657.0,5.129e-05]
[1765225521957,0.89076269,90658.0,90657.0,5.129e-05]
[1765225522193,0.88676269,90658.0,90657.0,5.129e-05]
[1765225523372,0.89176269,90658.0,90657.0,5.129e-05]
[1765225523967,0.89898391,90658.0,90657.0,5.129e-05]
[1765225524775,0.89898391,90658.0,90657.0,1.29e-06]
[1765225524982,0.23171669,90628.0,90618.0,0.01103533]
[1765225525240,0.323,90646.0,90618.0,0.01103533]
[1765225525241,0.02855338,90634.0,90625.0,0.01103448]
[1765225525534,0.02188,90629.0,90626.0,0.2317212]
[1765225526025,0.02188,90629.0,90627.0,0.22068367]
[1765225526602,0.002,90628.0,90627.0,0.22068367]
[1765225526807,0.002,90628.0,90626.0,0.23172079]
[1765225527009,0.02188,90629.0,90626.0,0.23172079]
[1765225527213,0.02188,90629.0,90627.0,0.22068406]
[1765225527395,0.02388,90629.0,90627.0,0.22068406]
[1765225527813,0.02188,90629.0,90627.0,0.22068406]
[1765225528037,0.24756111,90629.0,90626.0,0.01103436]
[1765225528250,0.23171653,90628.0,90625.0,0.01103448]
[1765225528409,0.01103436,90626.0,90622.0,0.01103484]
[1765225528773,0.02934,90623.0,90622.0,0.22069696]
[1765225529265,0.03991399,90629.0,90625.0,0.01103448]
[1765225529473,0.02188,90629.0,90627.0,0.22068478]
[1765225529678,0.02188,90635.0,90632.0,0.23170606]
[1765225529852,0.02188,90635.0,90633.0,0.22067017]
[1765225530437,0.02188,90635.0,90632.0,0.23170546]
[1765225530737,0.02188,90635.0,90634.0,0.22066774]
[1765225531149,0.09459,90635.0,90631.0,0.01103375]
[1765225531380,0.25000839,90634.0,90631.0,0.23170835]
[1765225531710,0.04037338,90634.0,90630.0,0.01103387]
[1765225531918,0.02934,90629.0,90627.0,0.00161287]
[1765225532127,0.25002234,90628.0,90627.0,0.00161287]
[1765225532264,0.25002234,90628.0,90618.0,0.00038851]
[1765225532265,0.22070426,90619.0,90618.0,0.00038851]
[1765225532472,0.25004426,90619.0,90618.0,0.00038851]
[1765225532698,0.29341426,90619.0,90618.0,0.00038851]
[1765225533076,0.02934,90619.0,90618.0,0.22109521]
[1765225533501,0.07371,90619.0,90618.0,0.22109521]
[1765225534672,0.07571,90619.0,90618.0,0.22109521]
[1765225534871,0.07571,90619.0,90618.0,0.00038851]
[1765225535090,0.29641426,90619.0,90618.0,0.00038851]
[1765225536004,0.29541426,90619.0,90618.0,0.00038851]
[1765225536205,0.31293426,90619.0,90618.0,0.00038851]
[1765225536373,0.33713426,90619.0,90618.0,0.00038851]
[1765225536812,0.31493426,90619.0,90618.0,0.00038851]
[1765225536975,0.31293426,90619.0,90618.0,0.00038851]
[1765225537191,0.33513426,90619.0,90618.0,0.00038851]
[1765225537866,0.33913426,90619.0,90618.0,0.00038851]
[1765225538023,0.33513426,90619.0,90618.0,0.00038851]
[1765225538351,0.72107353,90619.0,90618.0,0.00038851]
[1765225538668,0.74927353,90619.0,90618.0,0.00038851]
[1765225538888,0.75127353,90619.0,90618.0,0.00038851]
[1765225539212,0.74927353,90619.0,90618.0,0.00038851]
[1765225539415,0.75227353,90619.0,90618.0,0.00038851]
[1765225539620,0.66513426,90619.0,90618.0,0.00038851]
[1765225540019,0.65913426,90619.0,90618.0,0.00038851]
[1765225540235,0.66713426,90619.0,90618.0,0.00038851]
[1765225541461,0.64493426,90619.0,90618.0,0.00038851]
[1765225541663,0.66713426,90619.0,90618.0,0.00038851]
[1765225542193,0.76398124,90619.0,90618.0,0.00038851]
[1765225542399,0.82650423,90619.0,90618.0,0.00038851]
[1765225542691,0.82650423,90619.0,90612.0,0.00182852]
[1765225542692,0.62844187,90613.0,90612.0,0.00182852]
[1765225542925,0.66878382,90613.0,90612.0,0.00187982]
[1765225543116,0.82217366,90613.0,90612.0,0.00187982]
[1765225543975,0.83217366,90613.0,90612.0,0.00187982]
[1765225545259,0.83617366,90613.0,90612.0,0.00187982]
[1765225546284,0.82590115,90613.0,90612.0,0.00187982]
[1765225546490,0.83618291,90613.0,90612.0,0.00187982]
[1765225551046,0.23183615,90582.0,90579.0,0.01104008]
[1765225551248,0.0222,90581.0,90579.0,0.23192739]
[1765225551485,0.05007,90580.0,90579.0,8.585e-05]
[1765225551816,0.31577929,90580.0,90579.0,8.585e-05]
[1765225552015,0.09498,90580.0,90579.0,8.585e-05]
[1765225552623,0.31577929,90580.0,90579.0,0.00308585]
[1765225553030,0.33797929,90580.0,90579.0,0.00308585]
[1765225553738,0.33797929,90580.0,90579.0,8.585e-05]
[1765225554187,0.33797929,90580.0,90579.0,0.00108585]
[1765225554393,0.33897929,90580.0,90579.0,0.00108585]
[1765225555972,0.31677929,90580.0,90579.0,0.00108585]
[1765225560108,0.33897929,90580.0,90579.0,0.00108585]
[1765225560315,0.69412641,90580.0,90579.0,0.00108585]
[1765225560729,0.70441733,90580.0,90579.0,0.00108585]
[1765225561574,0.70441733,90580.0,90579.0,8.585e-05]
[1765225561803,0.70441733,90580.0,90579.0,0.0010655]
[1765225561980,0.72793733,90580.0,90579.0,0.0010655]
[1765225562329,0.72693733,90580.0,90579.0,0.0010655]
[1765225562919,0.73193733,90580.0,90579.0,0.0010655]
[1765225565042,0.71441733,90580.0,90579.0,0.0010655]
[1765225565388,0.73193733,90580.0,90579.0,0.0010655]
[1765225566771,0.79446032,90580.0,90579.0,0.0010655]
[1765225567130,0.62854422,90571.0,90570.0,0.0002]
[1765225567360,0.68665514,90571.0,90570.0,0.00028597]
[1765225567569,0.72615514,90571.0,90570.0,0.00028597]
[1765225567820,0.72615514,90571.0,90570.0,0.00055322]
[1765225568205,0.74367514,90571.0,90570.0,0.00055322]
[1765225568440,0.85215442,90571.0,90570.0,0.00055322]
[1765225568648,0.73015514,90571.0,90570.0,0.00055322]
[1765225568851,0.75067514,90571.0,90570.0,0.00055322]
[1765225569074,0.74667514,90571.0,90570.0,0.00055322]
[1765225569243,0.74967514,90571.0,90570.0,0.00055322]
[1765225569420,0.85215442,90571.0,90570.0,0.00055322]
[1765225569602,0.85715442,90571.0,90570.0,0.00055322]
[1765225570041,0.85215442,90571.0,90570.0,0.00055322]
[1765225570473,0.74667514,90571.0,90570.0,0.00055322]
[1765225571166,0.66195215,90571.0,90570.0,0.00055322]
[1765225571313,0.66295215,90571.0,90570.0,0.00055322]
[1765225571926,0.44213092,90571.0,90570.0,0.00055322]
[1765225572132,0.44215009,90571.0,90570.0,0.00055322]
[1765225572328,0.43184,90571.0,90570.0,0.00055322]
[1765225574494,0.65266123,90571.0,90570.0,0.00055322]
[1765225574832,0.76114051,90571.0,90570.0,0.00055322]
[1765225575185,0.65266123,90571.0,90570.0,0.00055322]
[1765225575390,0.67486123,90571.0,90570.0,0.00055322]
[1765225576098,0.45404,90571.0,90570.0,0.00055322]
[1765225576301,0.67486123,90571.0,90570.0,0.00055322]
[1765225576724,0.65734123,90571.0,90570.0,0.00055322]
[1765225576907,0.67486123,90571.0,90570.0,0.00055322]
[1765225578336,0.37482,90571.0,90570.0,0.00055322]
[1765225578539,0.31247123,90571.0,90570.0,0.00055322]
[1765225579241,0.04264,90551.0,90536.0,0.03908112]
[1765225579438,0.04264,90551.0,90530.0,0.0002]
[1765225579439,0.58268961,90533.0,90530.0,0.0002]
[1765225579639,0.5716488,90531.0,90530.0,0.000588]
[1765225579791,0.6300557,90531.0,90530.0,0.000588]
[1765225579991,0.6334688,90531.0,90530.0,0.000588]
[1765225580173,0.66750112,90531.0,90530.0,0.000588]
[1765225580819,0.06735,90531.0,90530.0,0.000588]
[1765225581127,0.02773,90531.0,90530.0,0.000588]
[1765225581266,0.06644232,90531.0,90530.0,0.000588]
[1765225581465,0.06744232,90531.0,90530.0,0.004588]
[1765225581996,0.06644232,90531.0,90530.0,0.004588]
[1765225583190,0.03871232,90531.0,90530.0,0.00620087]
[1765225583388,0.01752,90534.0,90531.0,0.23196474]
[1765225583618,0.34199,90541.0,90536.0,0.01104533]
[1765225583819,0.01104276,90557.0,90548.0,0.01104386]
[1765225584015,0.01104276,90557.0,90549.0,0.22087409]
[1765225584016,0.03871232,90552.0,90549.0,0.22087409]
[1765225584190,0.270624,90552.0,90549.0,0.00161287]
[1765225584555,0.22087069,90551.0,90549.0,0.00161287]
[1765225584689,0.27062522,90552.0,90549.0,0.01265661]
[1765225585092,0.27062522,90552.0,90549.0,0.01865661]
[1765225585312,0.02773,90550.0,90549.0,0.01965661]
[1765225585535,0.02773,90550.0,90549.0,0.00261287]
[1765225585733,0.02773,90550.0,90549.0,0.00861287]
[1765225585986,0.02773,90550.0,90549.0,0.00761287]
[1765225586188,0.06735,90550.0,90549.0,0.00761287]
[1765225586524,0.02773,90550.0,90549.0,0.00761287]
[1765225587170,0.02773,90550.0,90549.0,0.00161287]
[1765225588002,0.02773,90550.0,90549.0,0.00561287]
[1765225588380,0.02773,90550.0,90549.0,0.00261287]
[1765225588873,0.02773,90550.0,90549.0,0.00561287]
[1765225590288,0.03871232,90552.0,90550.0,0.22087244]
[1765225590485,0.03871232,90552.0,90550.0,0.22248531]
[1765225591214,0.24680156,90560.0,90551.0,0.02777287]
[1765225591215,0.01104276,90557.0,90551.0,0.02777287]
[1765225591424,0.23190539,90555.0,90551.0,0.01265637]
[1765225591598,0.323,90559.0,90557.0,0.22085415]
[1765225591839,0.54385093,90559.0,90556.0,0.23190057]
[1765225592010,0.54385093,90559.0,90556.0,0.23111237]
[1765225592212,0.24858558,90557.0,90554.0,0.23190517]
[1765225592420,0.23189834,90557.0,90553.0,0.23190766]
[1765225592856,0.23189834,90557.0,90554.0,0.01104313]
[1765225593077,0.01104289,90556.0,90553.0,0.01104325]
[1765225593863,0.01104289,90556.0,90553.0,0.01504325]
[1765225593864,0.23190263,90556.0,90553.0,0.01504325]
[1765225594072,0.23190263,90556.0,90553.0,0.22086493]
[1765225594237,0.01104264,90558.0,90554.0,0.001]
[1765225594438,0.22085537,90557.0,90554.0,0.001]
[1765225594737,0.24306268,90554.0,90553.0,0.004]
[1765225594945,0.287305,90554.0,90553.0,0.005]
[1765225595548,0.326925,90554.0,90553.0,0.005]
[1765225596158,0.326925,90554.0,90553.0,0.004]
[1765225596568,0.22086756,90552.0,90551.0,0.00161287]
[1765225596944,0.28821756,90552.0,90551.0,0.00056434]
[1765225597345,0.259575,90554.0,90553.0,0.003]
[1765225597739,0.27061813,90554.0,90553.0,0.00050493]
[1765225597919,0.33404228,90561.0,90557.0,0.01104276]
[1765225598107,0.03003167,90566.0,90563.0,0.01104203]
[1765225598281,0.25086591,90566.0,90563.0,0.01104203]
[1765225598480,0.22083655,90565.0,90563.0,0.01104203]
[1765225598679,0.01899,90566.0,90564.0,0.2208383]
[1765225598879,0.01899,90566.0,90565.0,0.22083586]
[1765225599083,0.03002959,90583.0,90574.0,0.01104069]
[1765225599318,0.25082615,90583.0,90579.0,0.01104008]
[1765225599522,0.59354845,90582.0,90579.0,0.01104008]
[1765225599726,0.323,90580.0,90578.0,0.23183966]
[1765225599894,0.22079933,90580.0,90576.0,0.2208069]
[1765225600096,0.01104008,90579.0,90576.0,0.23184946]
[1765225600295,0.01103984,90581.0,90577.0,0.01104033]
[1765225600496,0.23183676,90581.0,90579.0,0.001]
[1765225600706,0.03871232,90582.0,90579.0,0.01604008]
[1765225600908,0.03871232,90582.0,90580.0,0.22079929]
[1765225601109,0.22079903,90581.0,90577.0,0.01104033]
[1765225601343,0.22080164,90580.0,90577.0,0.005]
[1765225601554,0.22080188,90579.0,90577.0,0.005]
[1765225601754,0.22080416,90578.0,90577.0,0.005]
[1765225602556,0.23184196,90579.0,90575.0,0.01104057]
[1765225602557,0.01104008,90579.0,90575.0,0.01104057]
[1765225602893,0.01104033,90577.0,90574.0,0.01273986]
[1765225603183,0.22080904,90576.0,90574.0,0.01273986]
[1765225603332,0.22080904,90576.0,90574.0,0.23355324]
[1765225603533,0.231848,90577.0,90574.0,0.23355324]
[1765225603980,0.01104033,90577.0,90575.0,0.2208103]
[1765225604151,0.01104033,90577.0,90574.0,0.23355324]
[1765225604152,0.2318478,90577.0,90574.0,0.23355324]
[1765225604380,0.01104033,90577.0,90574.0,0.23355324]
[1765225604585,0.01104033,90577.0,90574.0,0.24055324]
[1765225605036,0.0110402,90578.0,90575.0,0.01104057]
[1765225605359,0.2318439,90579.0,90576.0,0.23184787]
[1765225605576,0.2318439,90579.0,90576.0,0.2318489]
[1765225605787,0.36171232,90582.0,90577.0,0.01104033]
[1765225605996,0.36171232,90582.0,90581.0,0.22079685]
[1765225605997,0.323,90582.0,90581.0,0.22079685]
[1765225606219,0.323,90582.0,90581.0,0.22240972]
[1765225606432,0.01752,90589.0,90587.0,0.22078223]
[1765225606636,0.2594658,90599.0,90594.0,0.01103825]
[1765225606757,0.03002789,90597.0,90593.0,0.23180587]
[1765225606962,0.2207632,90595.0,90593.0,0.01103838]
[1765225607176,0.23180133,90595.0,90592.0,0.0110385]
[1765225607378,0.23180133,90595.0,90593.0,0.2207676]
[1765225607379,0.01103813,90595.0,90593.0,0.2207676]
[1765225607577,0.01103801,90596.0,90593.0,0.23180598]
[1765225607792,0.01899,90597.0,90595.0,0.22076273]
[1765225607990,0.25078681,90597.0,90594.0,0.01403825]
[1765225608212,0.01899,90597.0,90594.0,0.01403825]
[1765225608416,0.01899,90597.0,90595.0,0.22076273]
[1765225608623,0.01899,90597.0,90596.0,0.22076029]
[1765225609009,0.01899,90597.0,90595.0,0.22076273]
[1765225609220,0.03653801,90596.0,90592.0,0.0130385]
[1765225609474,0.03653801,90596.0,90592.0,0.0110385]
[1765225609615,0.2572983,90596.0,90592.0,0.23180755]
[1765225610222,0.2572983,90596.0,90593.0,0.01103838]
[1765225610422,0.2572983,90596.0,90593.0,0.23180362]
[1765225611174,0.2572983,90596.0,90592.0,0.23180755]
[1765225611175,0.25730439,90594.0,90592.0,0.22076949]
[1765225614991,0.04557,90599.0,90597.0,0.22075549]
[1765225615519,0.24082304,90599.0,90596.0,0.23179766]
[1765225615715,0.02007,90599.0,90597.0,0.22075724]
[1765225616297,0.02107,90599.0,90597.0,0.22075724]
[1765225616683,0.25286062,90599.0,90596.0,0.01103801]
[1765225617063,0.25286062,90599.0,90596.0,0.23179808]
[1765225618002,0.0222,90593.0,90592.0,0.00161287]
[1765225618219,0.0477,90593.0,90592.0,0.00161287]
[1765225618399,0.2684676,90593.0,90592.0,0.00161287]
[1765225618599,0.06365,90593.0,90592.0,0.00161287]
[1765225619438,0.2844176,90593.0,90592.0,0.00261287]
[1765225619671,0.06365,90593.0,90592.0,0.22338291]
[1765225620030,0.06365,90593.0,90592.0,0.00261287]
[1765225620406,0.06365,90593.0,90592.0,0.22338291]
[1765225621012,0.06365,90593.0,90592.0,0.00261287]
[1765225621409,0.02007,90599.0,90595.0,0.01103813]
[1765225621653,0.04227,90599.0,90597.0,0.22075786]
[1765225621880,0.02007,90599.0,90597.0,0.22075583]
[1765225622452,0.22075542,90598.0,90596.0,0.01103801]
[1765225622904,0.23179319,90598.0,90594.0,0.01103825]
[1765225623045,0.22076032,90596.0,90594.0,0.23180341]
[1765225623483,0.22076032,90596.0,90594.0,0.01103825]
[1765225623923,0.04662789,90597.0,90595.0,0.22076273]
[1765225624119,0.23179319,90598.0,90595.0,0.22076273]
[1765225624347,0.23179319,90598.0,90595.0,0.23180086]
[1765225624506,0.25186073,90599.0,90596.0,0.01103801]
[1765225624854,0.25186073,90599.0,90595.0,0.01103813]
[1765225624855,0.33403691,90605.0,90601.0,0.22074731]
[1765225624975,0.54374342,90603.0,90600.0,0.23178743]
[1765225625171,0.323,90603.0,90600.0,0.23178743]
[1765225625909,0.323,90601.0,90599.0,0.01103764]
[1765225626124,0.323,90601.0,90590.0,0.25671427]
[1765225626125,0.22076517,90596.0,90550.0,0.71457026]
[1765225626336,0.04864033,90577.0,90569.0,0.0110413]
[1765225626512,0.24603148,90575.0,90563.0,0.02224203]
[1765225626714,0.24603148,90575.0,90560.0,0.01854]
[1765225626927,0.24603148,90575.0,90548.0,0.01104386]
[1765225626928,0.70965399,90575.0,90548.0,0.01104386]
[1765225627227,0.73185399,90575.0,90554.0,0.01104313]
[1765225627404,0.73185399,90575.0,90557.0,0.01104276]
[1765225627405,0.62682148,90575.0,90557.0,0.01104276]
[1765225627838,0.62682148,90575.0,90574.0,0.0010863]
[1765225628083,0.62682148,90575.0,90574.0,8.63e-05]
[1765225628436,0.63382148,90575.0,90574.0,8.63e-05]
[1765225628861,0.57603148,90575.0,90574.0,8.63e-05]
[1765225629065,0.62914148,90575.0,90574.0,8.63e-05]
[1765225629377,0.62714148,90575.0,90574.0,8.63e-05]
[1765225629828,0.64934148,90575.0,90574.0,8.63e-05]
[1765225630032,0.67741089,90575.0,90574.0,8.63e-05]
[1765225630162,0.69461089,90575.0,90574.0,8.63e-05]
[1765225630360,0.64434148,90575.0,90574.0,8.63e-05]
[1765225630566,0.64534148,90575.0,90574.0,8.63e-05]
[1765225630771,0.62314148,90575.0,90574.0,8.63e-05]
[1765225631130,0.62514148,90575.0,90574.0,8.63e-05]
[1765225631751,0.64734148,90575.0,90574.0,8.63e-05]
[1765225632099,0.75582076,90575.0,90574.0,8.63e-05]
[1765225632284,0.62514148,90575.0,90574.0,8.63e-05]
[1765225632890,0.64734148,90575.0,90574.0,8.63e-05]
[1765225636178,0.62514148,90575.0,90574.0,8.63e-05]
[1765225636424,0.57203148,90575.0,90574.0,8.63e-05]
[1765225637882,0.61063148,90575.0,90574.0,8.63e-05]
[1765225644089,0.74131076,90575.0,90574.0,8.63e-05]
[1765225644312,0.63283148,90575.0,90574.0,8.63e-05]
[1765225645861,0.63283148,90575.0,90562.0,0.00023759]
[1765225645862,0.56604074,90563.0,90562.0,0.00023759]
[1765225646061,0.64336074,90563.0,90562.0,0.000324]
[1765225646274,0.64804074,90563.0,90562.0,0.000324]
[1765225646474,0.01796,90563.0,90562.0,0.000324]
[1765225646907,0.01752,90571.0,90570.0,0.01104118]
[1765225647103,0.01752,90571.0,90566.0,0.01104167]
[1765225647329,0.01104118,90570.0,90566.0,0.23187288]
[1765225647488,0.22082781,90569.0,90566.0,0.23187288]
[1765225647698,0.22082682,90569.0,90566.0,0.23187288]
[1765225647897,0.2208264,90569.0,90566.0,0.23187288]
[1765225648113,0.2318651,90570.0,90567.0,0.22082951]
[1765225648343,0.2208271,90569.0,90566.0,0.23187288]
[1765225648567,0.22083083,90568.0,90564.0,0.23187558]